[Event "GCT Superbet Blitz Poland 2025"]
[Site "Warsaw"]
[Date "2025.04.29"]
[Round "6"]
[White "Praggnanandhaa R"]
[Black "Duda, Jan-Krzysztof"]
[Result "0-1"]
[ECO "A45"]
[WhiteElo "2758"]
[BlackElo "2739"]
[Annotator "TA"]
[PlyCount "125"]
[EventDate "2025.??.??"]
[EventType "blitz"]
[TimeControl "300+2"]

{[%evp 9,125,-24,-23,-26,0,-68,-70,-143,-145,-137,-160,-140,-152,-145,-81,-71,-85,-62,-79,-98,-121,-90,-17,-126,-52,-52,-66,-59,-24,-45,-42,-102,-102,-108,-102,-98,-85,-136,-136,-140,-136,-138,-146,-145,-141,-140,-140,-164,-165,-163,-147,-150,-137,-141,-148,-157,-143,-263,-89,-85,-94,-219,-219,-227,-214,-275,-257,-272,-262,-317,-295,-368,-166,-388,-382,-420,-413,-394,-359,-427,-463,-463,-454,-1129,-830,-510,-479,-1160,-1002,-2031,-1478,-1504,-1278,-1164,-584,-523,-975,-535,-8,-8,0,0,0,0,0,0,0,0,0,0,0,0,0,-29973,-29973,-29992,-29990,-29991]} 1. d4 {[%emt 0:00:01]} Nf6 {[%emt 0:00:01]} 2. Bf4 {[%emt 0:00:01]} c5 {[%emt 0:00:02]} 3. d5 {[%emt 0:00:07]} b5 {[%emt 0:00:04]} 4. e4 {[%emt 0:00:28]} Nxe4 {[%emt 0:00:11]} 5. Qf3 {[%emt 0:00:01]} Qa5+ {[%emt 0:00:11]} ({RR} 5... f5 6. Nd2 Qa5 7. c3 Nf6 8. Be5 d6 9. Bxf6 exf6 10. a4 b4 11. Bb5+ Kf7 12. Nh3 bxc3 13. bxc3 g6 14. O-O Nd7 15. Qe2 Kg7 16. Nc4 Qc7 17. f4 Nb6 18. Nxb6 Qxb6 19. a5 Qc7 20. a6 {Muthaiah,A (2458)-Anton Guijarro,D (2693) Abu Dhabi UAE 2023 1-0 (47)}) 6. Nd2 $1 {[%emt 0:00:57] A45: Trompowsky Attack.} Nf6 $5 {[%emt 0:00:10][%mdl 4] Leaves trodden paths.} ({RR} 6... Nxd2 7. Bxd2 Qb6 8. a4 b4 9. Nh3 Qf6 10. Qb3 Qe5+ 11. Be2 Ba6 12. Be3 Bxe2 13. Kxe2 d6 14. Rhe1 Nd7 15. Kf1 Qxh2 16. Bf4 Qh1+ 17. Ng1 Kd8 18. Re3 Qh4 19. Bg3 Qh5 20. Rae1 Nb6 21. Bxd6 {Rosen,E (2377)-Alvarado Diaz,A (2484) chess.com INT 2025 0-1 (78)}) 7. a4 $146 {[%emt 0:00:35]} (7. Ne2 $11) (7. c4 b4 8. Bd3 d6 9. Ne2 g6 10. O-O Bg7 11. Rfe1 O-O 12. a3 Na6 13. Ng3 {0-1 Cuenca Jimenez,J (2514)-Makarian,R (2525) Titled Tuesday intern op 23rd Jan Early blitz 2024 (3)}) 7... Bb7 $146 {[%emt 0:00:07]} ({RR} 7... a6 8. Ne2 Bb7 9. c4 bxc4 10. Nc3 Qd8 11. Nxc4 d6 12. Be2 g6 13. a5 Bg7 14. h4 h5 15. O-O O-O 16. Rfe1 Nbd7 17. Rad1 Re8 18. Qg3 Rc8 19. Bf3 {1-0 (19) Melaa,S (2329)-Montano Vicente,G (2001) chess.com INT 2024}) ({RR} 7... a6 8. Ne2 Bb7 9. c4 bxc4 10. Nc3 Qd8 11. Nxc4 d6 12. Be2 g6 13. a5 Bg7 14. h4 h5 15. O-O O-O 16. Rfe1 Nbd7 17. Rad1 Re8 18. Qg3 Rc8 19. Bf3 {1-0 (19) Melaa,S (2329)-Montano Vicente,G (2001) chess.com INT 2024}) 8. Qg3 {[%emt 0:00:14]} (8. Ra3 $1 $15) 8... Nh5 $17 {[%emt 0:00:09]} 9. Qf3 {[%emt 0:00:09]} Nxf4 {[%emt 0:00:04]} 10. Qxf4 {[%emt 0:00:01]} Bxd5 {[%emt 0:00:04]} 11. Ngf3 {[%emt 0:00:09]} Qb4 {[%emt 0:00:56]} (11... e6 $142 12. Bxb5 Be7) 12. Qxb4 {[%emt 0:00:17]} cxb4 {[%emt 0:00:01]} 13. axb5 {[%emt 0:00:01]} e6 {[%emt 0:00:06]} 14. Bc4 {[%emt 0:00:06]} Bb7 {[%emt 0:00:03]} 15. O-O {[%emt 0:00:03]} Be7 {[%emt 0:01:10]} (15... a6 $17 16. bxa6 Nxa6) 16. Be2 {[%emt 0:00:22]} (16. Ra4 $11 {remains equal.}) 16... O-O {[%emt 0:00:14]} ({Black should try} 16... a6 $17 17. b6 O-O) 17. Ra4 {[%emt 0:00:09]} Rc8 {[%emt 0:00:05]} 18. Bd3 {[%emt 0:00:04]} Bc5 {[%emt 0:00:29]} 19. Rfa1 {[%emt 0:00:13]} Bxf3 {[%emt 0:00:15]} 20. Nxf3 {[%emt 0:00:26]} (20. gxf3 $15 d5 21. Nb3) 20... d5 {[%emt 0:00:08]} 21. Nd2 {[%emt 0:00:01]} Nd7 {[%emt 0:00:09]} 22. Nb3 {[%emt 0:00:05]} Bb6 {[%emt 0:00:11]} 23. Rxb4 {[%emt 0:00:40]} (23. Re1 $142) 23... Ne5 $1 {[%emt 0:00:01]} 24. Nd4 {[%emt 0:00:01]} Nxd3 {[%emt 0:00:06]} 25. cxd3 {[%emt 0:00:01]} a5 {[%emt 0:00:27]} 26. Rba4 {[%emt 0:00:25]} (26. bxa6 $2 Rxa6 27. Rf1 Bc5 $19) 26... Bxd4 {[%emt 0:00:02]} 27. Rxd4 {[%emt 0:00:01][%mdl 4096] Endgame KRR-KRR} Rab8 {[%emt 0:00:03]} 28. g3 {[%emt 0:00:15]} Rxb5 {[%emt 0:00:01][%cal Og7g6]} 29. Ra2 {[%emt 0:00:01]} g6 {[%emt 0:00:20]} 30. Rda4 {[%emt 0:00:00]} Rc1+ {[%emt 0:00:04]} 31. Kg2 {[%emt 0:00:01]} Rd1 {[%emt 0:00:01]} 32. R4a3 {[%emt 0:00:06]} Rd2 {[%emt 0:00:06] Black is more active.} 33. Kf3 {[%emt 0:00:01] [#]} (33. Rxa5 $17 Rbxb2 (33... Rdxb2 $2 34. Kf3 $19) 34. Rxb2 Rxb2 35. Ra4) 33... d4 $2 {[%emt 0:00:03]} (33... Rbxb2 34. Rxb2 Rxb2 35. Rxa5 $17) (33... Rc5 $1 $19 {is more deadly. ...Rcc2 is the strong threat.} 34. b3 Rxd3+ 35. Kg2 h5 36. Rxa5 Rxa5 37. Rxa5 Rxb3) 34. Rxa5 {[%emt 0:00:06]} Rxd3+ {[%emt 0:00:01]} (34... Rbxb2 $2 35. Rxb2 Rxb2 36. Re5 $19) 35. Ke2 {[%emt 0:00:00] [#]} (35. Ke4 $17 {was called for.} Rxa5 (35... Rbb3 36. R5a3 $15) 36. Rxa5) 35... Rxa5 $1 $19 {[%emt 0:00:01]} 36. Rxa5 {[%emt 0:00:01] KR-KR. Black is a pawn up.} Rb3 {[%emt 0:00:01]} 37. Ra2 {[%emt 0:00:01]} e5 {[%emt 0:00:01]} 38. Kd1 {[%emt 0:00:04]} Kg7 {[%emt 0:00:04]} 39. Kc1 {[%emt 0:00:01]} g5 {[%emt 0:00:04]} 40. Ra3 {[%emt 0:00:03]} Rb5 {[%emt 0:00:02]} (40... Rxa3 $142 41. bxa3 Kf6) 41. Kc2 $2 {[%emt 0:00:02]} (41. g4) 41... g4 {[%emt 0:00:01]} 42. Ra4 {[%emt 0:00:01]} Kg6 {[%emt 0:00:02]} 43. b4 {[%emt 0:00:01]} Kf5 {[%emt 0:00:01]} 44. Kb3 {[%emt 0:00:01]} Ke4 {[%emt 0:00:02]} 45. Ra7 {[%emt 0:00:01]} f5 {[%emt 0:00:03]} 46. Rxh7 {[%emt 0:00:00]} (46. Ra2 $142 Kd3 47. Ra7) 46... Kf3 {[%emt 0:00:03][%cal Ob5d5]} 47. Kc4 {[%emt 0:00:03]} Rb8 {[%emt 0:00:01][%cal Ob8d8]} 48. Re7 {[%emt 0:00:01]} (48. Rf7 $142 Rd8 (48... Kxf2 49. Rxf5+ Kg2 50. Rxe5 $15) 49. Kd3 (49. Rxf5+ $2 {is the wrong capture.} Ke4 $19) 49... e4+ (49... Kxf2 50. Rxf5+ Kg2 51. Rxe5 $11) 50. Kd2) 48... e4 {[%emt 0:00:03]} (48... Kxf2 49. Rxe5 d3 50. Kxd3 $11 (50. Rxf5+ Ke2 $19)) 49. Re5 {[%emt 0:00:06]} Kxf2 {[%emt 0:00:01]} 50. Kxd4 {[%emt 0:00:02]} Rxb4+ {[%emt 0:00:02]} 51. Kc3 {[%emt 0:00:00]} Ra4 {[%emt 0:00:04]} 52. Rxf5+ {[%emt 0:00:01]} Ke3 {[%emt 0:00:01]} 53. Rf4 {[%emt 0:00:05]} Ra2 $2 {[%emt 0:00:02]} (53... Ra8 $19 54. Rxg4 Rc8+ 55. Kb3 Kd3) 54. Rxg4 $11 {[%emt 0:00:00]} Rxh2 {[%emt 0:00:01]} 55. Rg8 $1 {[%emt 0:00:01]} Rg2 {[%emt 0:00:04]} 56. g4 {[%emt 0:00:02][%cal Bg3g4,Bg4g5,Bg5g6,Bg6g7][%mdl 32]} Ke2 {[%emt 0:00:01]} 57. g5 {[%emt 0:00:01]} e3 {[%emt 0:00:01]} 58. g6 {[%emt 0:00:04]} Ke1 {[%emt 0:00:02]} 59. g7 {[%emt 0:00:02]} e2 {[%emt 0:00:01]} 60. Kc2 {[%emt 0:00:05]} Rg6 {[%emt 0:00:01]} 61. Kd3 $2 {[%emt 0:00:04][%mdl 8192]} (61. Kb3 $11) 61... Kd1 {[%emt 0:00:04]} 62. Rh8 {[%emt 0:00:02]} Rg3+ {[%emt 0:00:02]} ({Weaker is} 62... e1=R 63. g8=Q Rxg8 64. Rxg8 $11) 63. Kd4 {[%emt 0:00:05] Weighted Error Value: White=0.60/Black=0.45 Loses game: 	White=1 	--- Missed win: 	--- 	Black=2 Mistake: 	White=9 	Black=4 Inaccurate: 	White=1 	Black=2 OK: 	White=14 	Black=22 Best: 	White=2 	Black=5 Strong: 	White=1 	Black=2} 0-1

[Event "GCT Superbet Blitz Poland 2025"]
[Site "Warsaw"]
[Date "2025.04.29"]
[Round "6"]
[White "Aravindh, Chithambaram VR."]
[Black "Topalov, Veselin"]
[Result "0-1"]
[ECO "B22"]
[WhiteElo "2749"]
[BlackElo "2717"]
[Annotator "RC"]
[PlyCount "200"]
[EventDate "2025.??.??"]
[EventType "blitz"]
[TimeControl "300+2"]

1. e4 {[%emt 0:00:02] Ftacnik,Lubomir} c5 {[%emt 0:00:01]} 2. c3 {[%emt 0:00:01]} Nf6 {[%emt 0:00:05]} 3. e5 {[%emt 0:00:02]} Nd5 {[%emt 0:00:01]} 4. Bc4 {[%emt 0:00:02]} Nb6 {[%emt 0:00:02]} 5. Bb3 {[%emt 0:00:01]} d5 {[%emt 0:00:14]} 6. exd6 {[%emt 0:00:02]} e6 {[%emt 0:00:03]} 7. Nf3 {[%emt 0:00:11]} Bxd6 {[%emt 0:00:02]} 8. d4 {[%emt 0:00:01]} O-O {[%emt 0:00:15]} ({RR} 8... Qc7 9. Nbd2 N8d7 10. Ne4 Be7 11. dxc5 Nxc5 12. Nxc5 Bxc5 13. Qe2 O-O 14. O-O Bd7 15. Ne5 Ba4) 9. O-O {[%emt 0:00:03]} Nc6 {[%emt 0:00:04]} 10. Re1 {[%emt 0:01:05]} cxd4 {[%emt 0:00:08]} ({RR} 10... Be7 11. dxc5 ({RR} 11. Be3 cxd4 12. cxd4 Nd5 13. Nc3 Nxe3 14. Rxe3 Bf6 15. Ne4 Bd7 16. Qd2 Be7 17. a3 Qa5 18. Rc3 Rad8 19. Rd1 Bc8 20. Qc1 Qb6 21. Qe3) 11... Qxd1 12. Rxd1 Bxc5 13. Bf4 Rd8 ({RR} 13... Bd7 14. Nbd2 Na5 15. Bc2 Nd5 16. Bg3 Be7 17. Ne5) 14. Rxd8+ Nxd8 15. Nbd2 Bd7 16. Rd1 Be8 ({RR} 16... Ba4 17. Ne4 ({RR} 17. Bxa4 Nxa4 18. Ne4 Nxb2) 17... Bxb3 ({RR} 17... Bf8 18. Bxa4 Nxa4 19. b3 Nb6 20. c4) 18. axb3 Be7 19. b4 ({RR} 19. c4 Nc6) 19... Nd5 20. Bg3 a6) ({RR} 16... Be7 17. Nc4) 17. h3 ({RR} 17. Nc4 Nxc4 18. Bxc4 Nc6 19. b4) 17... Be7 18. Be3 Nc6 19. Nc4 Nxc4 20. Bxc4 h6 ({RR} 20... Kf8) ({RR} 20... h5 21. Kf1) 21. Kf1 Kf8 22. Ke2 Rc8 ({RR} 22... Rb8 23. Bd3 b5 24. g4) 23. Bd3 Rd8 24. a3 b6 ({RR} 24... a6) 25. g4 {Morozevich,A (2742)-Lautier,J (2687) Wijk aan Zee 2002 CBM 087 [Ftacnik,Lubomir] 1-0 (51)} {RR} Bf6 ({RR} 25... h5 26. gxh5 f5 27. h6 Bh5 28. h7 Kf7 ({RR} 28... Bxf3+ 29. Kxf3 Ne5+ 30. Ke2 Ng6 31. Bc4) 29. Be4) ({RR} 25... Na5 26. b4 Ba4 27. Rd2 ({RR} 27. bxa5 Bxd1+) 27... Nc6) 26. h4 Ne5 27. Nxe5 Bxe5 28. f4 Bc7) 11. cxd4 {[%emt 0:00:01]} Bd7 {[%emt 0:00:08]} 12. Nc3 {[%emt 0:00:01]} Rc8 {[%emt 0:00:04]} 13. a3 $146 {[%emt 0:00:30]} ({RR} 13. Bg5 Be7 14. Bf4 Nb4 15. Rc1 Bc6 16. Ne5 Bd5 17. Nxd5 N4xd5 18. Bg3 Rxc1 19. Qxc1 Qc8 20. Qb1 Bf6 21. h3 Qd8 22. Qe4 Ne7 23. Nxf7 Rxf7 24. Bxe6 Kf8 25. Qxh7 Ng8 26. d5 Nc8 27. d6 Nxd6 {Bardyk,A (2206)-Kochiev,I (2053) chess.com INT 2023 0-1 (77)}) ({RR} 13. Bg5 Be7 14. Bf4 Nb4 15. Rc1 Bc6 16. Ne5 Bd5 17. Nxd5 N4xd5 18. Bg3 Rxc1 19. Qxc1 Qc8 20. Qb1 Bf6 21. h3 Qd8 22. Qe4 Ne7 23. Nxf7 Rxf7 24. Bxe6 Kf8 25. Qxh7 Ng8 26. d5 Nc8 27. d6 Nxd6 {Bardyk,A (2206)-Kochiev,I (2053) chess.com INT 2023 0-1 (77)}) 13... Ne7 {[%emt 0:00:09]} 14. Bg5 {[%emt 0:00:06]} Bc6 {[%emt 0:00:12]} 15. Ne5 {[%emt 0:00:10]} Bxe5 {[%emt 0:00:11]} 16. Rxe5 {[%emt 0:00:29]} Qd7 {[%emt 0:00:19]} 17. Qd3 {[%emt 0:00:42]} Ng6 {[%emt 0:00:09]} 18. Ree1 {[%emt 0:00:18]} Nd5 {[%emt 0:00:16]} 19. Qg3 {[%emt 0:00:06]} Nxc3 {[%emt 0:00:10]} 20. bxc3 {[%emt 0:00:01]} Bd5 {[%emt 0:00:01]} 21. Bc2 {[%emt 0:00:15]} Qc7 {[%emt 0:00:03]} 22. Re3 {[%emt 0:00:01]} Qxg3 {[%emt 0:00:02]} 23. Rxg3 {[%emt 0:00:03]} Rc7 {[%emt 0:00:33]} 24. h4 {[%emt 0:00:03]} Rfc8 {[%emt 0:00:01]} 25. h5 {[%emt 0:00:11]} Nf8 {[%emt 0:00:08]} 26. Rc1 {[%emt 0:00:25]} Rxc3 {[%emt 0:00:20]} 27. Rxc3 {[%emt 0:00:44]} Rxc3 {[%emt 0:00:01]} 28. h6 {[%emt 0:00:00]} Rc4 {[%emt 0:00:30]} 29. Bd3 {[%emt 0:00:20]} Rxc1+ {[%emt 0:00:02]} 30. Bxc1 {[%emt 0:00:01]} Nd7 {[%emt 0:00:03]} 31. hxg7 {[%emt 0:00:03]} Kxg7 {[%emt 0:00:00]} 32. f3 {[%emt 0:00:01]} Nb8 {[%emt 0:00:05]} 33. Kf2 {[%emt 0:00:02]} Nc6 {[%emt 0:00:01]} 34. Ke3 {[%emt 0:00:04]} a6 {[%emt 0:00:00]} 35. g4 {[%emt 0:00:01]} f6 {[%emt 0:00:02]} 36. Bd2 {[%emt 0:00:02]} b5 {[%emt 0:00:02]} 37. Be1 {[%emt 0:00:02]} h6 {[%emt 0:00:03]} 38. Bd2 {[%emt 0:00:02]} Bc4 {[%emt 0:00:05]} 39. Be4 {[%emt 0:00:01]} Bd5 {[%emt 0:00:03]} 40. Bd3 {[%emt 0:00:02]} Ne7 {[%emt 0:00:02]} 41. Bb4 {[%emt 0:00:01]} Kf7 {[%emt 0:00:01]} 42. Bd2 {[%emt 0:00:03]} Bc4 {[%emt 0:00:06]} 43. Be4 {[%emt 0:00:01]} f5 {[%emt 0:00:00]} 44. Bc2 {[%emt 0:00:04]} Nd5+ {[%emt 0:00:01]} 45. Kf2 {[%emt 0:00:01]} Kg6 {[%emt 0:00:01]} 46. Kg3 {[%emt 0:00:02]} h5 {[%emt 0:00:06]} 47. gxf5+ {[%emt 0:00:02]} exf5 {[%emt 0:00:00]} 48. Kh4 {[%emt 0:00:02]} Be2 {[%emt 0:00:12]} 49. Kg3 {[%emt 0:00:01]} Kf6 {[%emt 0:00:02]} 50. Bb3 {[%emt 0:00:04]} Bc4 {[%emt 0:00:03]} 51. Bc2 {[%emt 0:00:02]} Ne7 {[%emt 0:00:14]} 52. Kh4 {[%emt 0:00:03]} Kg6 {[%emt 0:00:03]} 53. Bg5 {[%emt 0:00:01]} Nd5 {[%emt 0:00:01]} 54. Bd2 {[%emt 0:00:02]} Ne7 {[%emt 0:00:03]} 55. Bg5 {[%emt 0:00:01]} Nc6 {[%emt 0:00:00]} 56. Be3 {[%emt 0:00:04]} a5 {[%emt 0:00:02]} 57. Kg3 {[%emt 0:00:02]} Ne7 {[%emt 0:00:01]} 58. Bd2 {[%emt 0:00:01]} a4 {[%emt 0:00:02]} 59. Bb4 {[%emt 0:00:03]} Nd5 {[%emt 0:00:01]} 60. Bd2 {[%emt 0:00:02]} b4 {[%emt 0:00:06]} 61. axb4 {[%emt 0:00:01]} a3 {[%emt 0:00:00]} 62. Bc1 {[%emt 0:00:01]} a2 {[%emt 0:00:01]} 63. Bb2 {[%emt 0:00:01]} Nxb4 {[%emt 0:00:01]} 64. Ba4 {[%emt 0:00:03]} f4+ {[%emt 0:00:02]} 65. Kh4 {[%emt 0:00:03]} Bd5 {[%emt 0:00:04]} 66. Be8+ {[%emt 0:00:02]} Kf6 {[%emt 0:00:02]} 67. Bxh5 {[%emt 0:00:02]} Nc2 {[%emt 0:00:06]} 68. Kg4 {[%emt 0:00:02]} Ne1 {[%emt 0:00:04]} 69. Bc3 {[%emt 0:00:03]} Bxf3+ {[%emt 0:00:01]} 70. Kxf4 {[%emt 0:00:02]} Bxh5 {[%emt 0:00:01]} 71. Ke3 {[%emt 0:00:02]} a1=Q 72. Bxa1 {[%emt 0:00:02]} Nc2+ {[%emt 0:00:12]} 73. Kd2 {[%emt 0:00:01]} Nxa1 {[%emt 0:00:01]} 74. Kc3 {[%emt 0:00:02]} Bf7 {[%emt 0:00:04]} 75. Kb2 {[%emt 0:00:02]} Nb3 {[%emt 0:00:02]} 76. d5 {[%emt 0:00:02]} Bxd5 {[%emt 0:00:01]} 77. Kc3 {[%emt 0:00:00]} Ke5 {[%emt 0:00:01]} 78. Kd3 {[%emt 0:00:02]} Nc5+ {[%emt 0:00:06]} 79. Ke3 {[%emt 0:00:01]} Be4 {[%emt 0:00:01]} 80. Kd2 {[%emt 0:00:02]} Kd4 {[%emt 0:00:01]} 81. Ke2 {[%emt 0:00:01]} Nb3 {[%emt 0:00:06]} 82. Kf2 {[%emt 0:00:01]} Nc1 {[%emt 0:00:17]} 83. Kg3 {[%emt 0:00:02]} Nd3 {[%emt 0:00:03]} 84. Kg4 {[%emt 0:00:01]} Ke5 {[%emt 0:00:01]} 85. Kg5 {[%emt 0:00:04]} Bf5 {[%emt 0:00:02]} 86. Kh4 {[%emt 0:00:04]} Kf6 {[%emt 0:00:06]} 87. Kg3 {[%emt 0:00:01]} Be4 {[%emt 0:00:04]} 88. Kh4 {[%emt 0:00:04]} Kg6 {[%emt 0:00:01]} 89. Kg4 {[%emt 0:00:00]} Bd5 {[%emt 0:00:06]} 90. Kh4 {[%emt 0:00:01]} Bf3 {[%emt 0:00:00]} 91. Kg3 {[%emt 0:00:01]} Bd1 {[%emt 0:00:02]} 92. Kh4 {[%emt 0:00:02]} Be2 {[%emt 0:00:01]} 93. Kg3 {[%emt 0:00:03]} Kg5 {[%emt 0:00:00]} 94. Kh3 {[%emt 0:00:00]} Kf4 {[%emt 0:00:05]} 95. Kh4 {[%emt 0:00:02]} Ne5 {[%emt 0:00:01]} 96. Kh3 {[%emt 0:00:00]} Bg4+ {[%emt 0:00:05]} 97. Kg2 {[%emt 0:00:02]} Nd3 {[%emt 0:00:03]} 98. Kg1 {[%emt 0:00:03]} Kg3 {[%emt 0:00:01]} 99. Kf1 {[%emt 0:00:01]} Bh5 {[%emt 0:00:02]} 100. Kg1 {[%emt 0:00:01]} Be2 {[%emt 0:00:01]} 0-1

[Event "GCT Superbet Blitz Poland 2025"]
[Site "Warsaw"]
[Date "2025.04.29"]
[Round "6"]
[White "Aronian, Levon"]
[Black "Firouzja, Alireza"]
[Result "1-0"]
[ECO "D35"]
[WhiteElo "2747"]
[BlackElo "2757"]
[Annotator "TA"]
[PlyCount "85"]
[EventDate "2025.??.??"]
[EventType "blitz"]
[TimeControl "300+2"]

{[%evp 15,85,10,21,12,25,32,31,28,33,24,38,15,25,20,41,23,29,29,39,23,66,66,82,66,92,48,100,104,154,137,137,108,145,104,95,101,151,157,156,151,189,147,195,177,237,220,245,227,204,205,256,177,234,237,314,306,311,308,317,316,482,493,528,520,475,452,611,606,754,757,721,719]} 1. c4 {[%emt 0:00:01] Chessbase - Stockfish 17} e6 {[%emt 0:00:03]} 2. Nc3 {[%emt 0:00:01]} d5 {[%emt 0:00:02]} 3. d4 {[%emt 0:00:01]} Nf6 {[%emt 0:00:01]} 4. cxd5 {[%emt 0:00:03]} exd5 {[%emt 0:00:01]} 5. Bg5 {[%emt 0:00:01][%cal Bc1g5,Bg5h4,Bh4g3][%mdl 32]} c6 {[%emt 0:00:00]} 6. e3 {[%emt 0:00:02]} h6 {[%emt 0:00:01]} 7. Bh4 {[%emt 0:00:01]} Be7 {[%emt 0:00:01]} 8. Bd3 {[%emt 0:00:02]} O-O {[%emt 0:00:02]} 9. Nge2 {[%emt 0:00:03] 9.Bg3 is the modern continuation. D35: Queen's Gambit Declined: Exchange Variation.} Ne8 {[%emt 0:00:02]} 10. Bg3 {[%emt 0:00:03]} Nd6 {[%emt 0:00:01]} 11. O-O {[%emt 0:00:12] White is slightly better.} Re8 {[%emt 0:00:05]} 12. Qc2 {[%emt 0:00:13]} a5 {[%emt 0:00:04]} ({RR} 12... Bf8 13. Rae1 a5 14. Nf4 Na6 15. a3 Qf6 16. f3 b5 17. Bf2 Nc4 18. g3 Qd8 19. e4 b4 20. exd5 Rxe1 21. Rxe1 Nd6 22. Na4 cxd5 23. Nxd5 Rb8 24. Nc5 Nb5 25. Bxb5 Rxb5 26. Qc4 Rb8 27. a4 {Maghsoodloo,P (2721)-Carlsen,M (2856) Mayrhofen 2022 ½-½ (39)}) ({RR} 12... Bf8 13. Rae1 a5 14. Nf4 Na6 15. a3 Qf6 16. f3 b5 17. Bf2 Nc4 18. g3 Qd8 19. e4 b4 20. exd5 Rxe1 21. Rxe1 Nd6 22. Na4 cxd5 23. Nxd5 Rb8 24. Nc5 Nb5 25. Bxb5 Rxb5 26. Qc4 Rb8 27. a4) 13. Rae1 {[%emt 0:00:08]} ({RR} 13. Rad1 Bf8 14. h3 Nd7 15. Kh1 ({RR} 15. Rfe1 Nf6 16. Bh4 g6 17. Bg3 Bf5 18. Nf4 Bxd3 19. Nxd3 Nfe4 20. Bf4 Nxc3 21. Qxc3 a4 22. Qc2 Nc4 23. Re2 Qh4 24. Rde1 Bd6 25. Bxd6 Nxd6 26. Nc5 a3 27. b3 Re7 28. Qc1 Kg7 29. Rc2 Rae8) 15... Nf6 16. Be5 Nd7 17. Bf4 Nf6 18. Ng3 b5 19. Nb1 Qb6 20. Nd2 Ba6 21. Rc1 Rac8 22. Nf5 Nde4 23. Bxe4 dxe4 24. Bd6 b4 25. Bxf8 Kxf8 26. Rfd1 Bd3 27. Qc5+ Qxc5 {Svane,F (2664)-Oro,F (2447) Wijk aan Zee 2025 [Chessbase - Stockfish 17] 1-0 (55)}) 13... Na6 {[%emt 0:00:12]} 14. a3 {[%emt 0:00:01] Dodges Nb4} Bh4 $146 {[%emt 0:00:16]} (14... Bf8 15. Nc1 Nc7 16. f3 Ne6 17. Nb3 b5 18. Kh1 a4 19. Nc5 Nc4 20. Bxc4 dxc4 21. Nxe6 Bxe6 {0-1 Ioannidis,E (2502)-Khismatullin,D (2579) Titled Tuesday intern op 17th Oct Early blitz 2023 (7)}) ({RR} 14... Bf8 15. Nc1 Nc7 16. f3 Ne6 17. Nb3 b5 18. Kh1 a4 19. Nc5 Nc4 20. Bxc4 dxc4 21. Nxe6 Bxe6 22. Rd1 Qa5 23. e4 b4 24. axb4 Qxb4 25. d5 cxd5 26. Nxd5 Bxd5 27. Rxd5 Qb3 28. Rc1 Rec8 29. Rd4 {Ioannidis,E (2502)-Khismatullin,D (2579) chess.com INT 2023 0-1 (72)}) ({RR} 14... Bf8 15. Nc1 Nc7 16. f3 Ne6 17. Nb3 b5 18. Kh1 a4 19. Nc5 Nc4 20. Bxc4 dxc4 21. Nxe6 Bxe6 22. Rd1 Qa5 23. e4 b4 24. axb4 Qxb4 25. d5 cxd5 26. Nxd5 Bxd5 27. Rxd5 Qb3 28. Rc1 Rec8 29. Rd4 {Ioannidis,E (2502)-Khismatullin,D (2579) chess.com INT 2023 0-1 (72)}) ({RR} 14... Bf8 15. Be5 b5 16. Ng3 Nc4 17. Bxc4 dxc4 18. Nge2 Ra7 19. e4 Rd7 20. Bg3 Nc7 21. Rd1 Ba6 22. Rfe1 b4 23. axb4 axb4 24. Na4 Ne6 25. d5 cxd5 26. exd5 Rxd5 27. Rxd5 Qxd5 28. Rd1 Qc6 29. b3 {Dubnevych,M (2293)-Bacrot,E (2684) chess.com INT 2024 0-1 (32)}) 15. Bxh4 {[%emt 0:00:34]} Qxh4 {[%emt 0:00:01]} 16. Ng3 {[%emt 0:00:01]} Nc7 {[%emt 0:00:09]} 17. Na4 {[%emt 0:00:13]} Be6 {[%emt 0:01:16]} 18. f4 {[%emt 0:00:17][%cal Bf2f4,Bf4f5][%mdl 32]} Bd7 {[%emt 0:00:49]} 19. Nb6 $36 {[%emt 0:00:11][%mdl 2048] Black is under pressure.} Rad8 {[%emt 0:00:02]} 20. Qc5 {[%emt 0:00:05]} Qf6 {[%emt 0:00:52]} (20... Bg4 $14) 21. f5 $16 {[%emt 0:00:30][%cal Og3h5] [#] White has more active pieces.} (21. Qxa5 Bf5 22. Qd2 Bxd3 23. Qxd3 Kh8 $14) 21... Bc8 {[%emt 0:00:20]} ({Better is} 21... Ndb5 22. a4 Na6 23. Nxd7 Rxd7) 22. Qxa5 {[%emt 0:00:09]} Qg5 {[%emt 0:00:02]} 23. Qd2 {[%emt 0:01:44]} h5 {[%emt 0:00:02][%cal Bh6h5,Bh5h4][%mdl 32]} 24. Qf2 {[%emt 0:00:01]} h4 {[%emt 0:00:06]} 25. Nh1 {[%emt 0:00:01]} Ne4 {[%emt 0:00:33]} (25... Ncb5 $142) 26. Qf4 {[%emt 0:00:05]} Qxf4 {[%emt 0:00:37]} 27. Rxf4 {[%emt 0:00:01]} h3 {[%emt 0:00:03]} 28. gxh3 {[%emt 0:00:03][%cal Bg2h3,Bh3h4][%mdl 32]} Nd6 {[%emt 0:00:11]} (28... Nf6 $16 29. Nf2 Nb5) 29. Ng3 {[%emt 0:00:06]} f6 {[%emt 0:00:02]} (29... Kf8 $142 30. h4 Ke7) 30. h4 {[%emt 0:00:05]} Re7 {[%emt 0:00:01]} 31. Kf2 {[%emt 0:00:06]} Bd7 {[%emt 0:00:02]} 32. Nxd7 {[%emt 0:00:10]} Rexd7 {[%emt 0:00:02]} 33. h5 {[%emt 0:00:01]} Kh7 {[%emt 0:00:01] [#]} (33... Nf7 $142 34. a4 Re7) 34. h6 $1 $18 {[%emt 0:00:05]} gxh6 {[%emt 0:00:04]} (34... Rh8 35. hxg7) 35. Nh5 {[%emt 0:00:00]} Rf8 {[%emt 0:00:02]} 36. Rg1 {[%emt 0:00:01][%cal Be1g1,Bg1g6,Bg6f6][%mdl 32]} Nce8 {[%emt 0:00:02]} 37. Rg6 {[%emt 0:00:03]} Re7 {[%emt 0:00:01]} (37... Kh8 {was called for.} 38. Rxh6+ Rh7 39. Rxh7+ Kxh7) 38. Rh4 {[%emt 0:00:07][%cal Oh5f6] White wants to mate with Nxf6+!. White is clearly winning.} Nf7 {[%emt 0:00:03]} 39. Nxf6+ {[%emt 0:00:03]} Nxf6 {[%emt 0:00:02]} 40. Rxf6 {[%emt 0:00:01]} Rc7 {[%emt 0:00:03]} 41. Rg6 {[%emt 0:00:07]} Kh8 {[%emt 0:00:02]} 42. f6 {[%emt 0:00:03] Rg7 would now be deadly.} c5 {[%emt 0:00:02]} 43. Rg7 {[%emt 0:00:05] Weighted Error Value: White=0.11 (very precise) /Black=0.36 Mistake: 	--- 	Black=7 Inaccurate: 	White=2 	Black=3 OK: 	White=15 	Black=7 Best: 	White=1 	Black=1} 1-0